[Event "Late-Titled-Tuesday-Blitz-September-19-2023"]
[Site "Chess.com"]
[Date "2023.09.19"]
[Round "8"]
[White "farzadbfd"]
[Black "Deeper44"]
[Result "1-0"]
[WhiteElo "2700"]
[BlackElo "2532"]
[TimeControl "180+1"]
[EndTime "15:28:17 PDT"]
[Termination "farzadbfd won by resignation"]

1. d4 {[%clk 0:03:00.9]} 1... Nf6 {[%clk 0:03:00.1]} 2. Nf3 {[%clk 0:03:01.1]}
2... g6 {[%clk 0:03:00.3]} 3. Bg5 {[%clk 0:03:00.9]} 3... Bg7 {[%clk 0:03:00.8]}
4. e3 {[%clk 0:03:01.6]} 4... d6 {[%clk 0:03:00.6]} 5. Be2 {[%clk 0:03:01.1]}
5... Ne4 {[%clk 0:02:59.9]} 6. Bf4 {[%clk 0:03:01]} 6... b6 {[%clk 0:02:59.2]}
7. O-O {[%clk 0:02:59.8]} 7... O-O {[%clk 0:02:59.2]} 8. c4 {[%clk 0:02:59.9]}
8... Bb7 {[%clk 0:02:59]} 9. Nfd2 {[%clk 0:02:59]} 9... Nxd2 {[%clk 0:02:57.9]}
10. Nxd2 {[%clk 0:02:59.9]} 10... e5 {[%clk 0:02:57.2]} 11. Bf3 {[%clk
0:02:34.1]} 11... Qc8 {[%clk 0:02:25.1]} 12. dxe5 {[%clk 0:02:29]} 12... dxe5
{[%clk 0:02:24.4]} 13. Bg3 {[%clk 0:02:23.7]} 13... Rd8 {[%clk 0:02:18.7]} 14.
Qc2 {[%clk 0:02:19.1]} 14... Na6 {[%clk 0:02:11.9]} 15. a3 {[%clk 0:02:06.5]}
15... Nc5 {[%clk 0:02:01.8]} 16. b4 {[%clk 0:02:05.6]} 16... Rxd2 {[%clk
0:01:06.7]} 17. Qxd2 {[%clk 0:02:03.2]} 17... Nb3 {[%clk 0:01:02.6]} 18. Qe2
{[%clk 0:01:06.6]} 18... Bxf3 {[%clk 0:00:49.4]} 19. gxf3 {[%clk 0:01:00.7]}
19... Nxa1 {[%clk 0:00:47.8]} 20. Rxa1 {[%clk 0:01:01.6]} 20... Qe8 {[%clk
0:00:32.6]} 21. Rd1 {[%clk 0:01:01.4]} 21... Rd8 {[%clk 0:00:33.3]} 22. e4
{[%clk 0:00:56.5]} 22... Rd6 {[%clk 0:00:30.1]} 23. Rd5 {[%clk 0:00:52.8]} 23...
Qe6 {[%clk 0:00:19.3]} 24. Kg2 {[%clk 0:00:50.9]} 24... c6 {[%clk 0:00:18.8]}
25. Rxd6 {[%clk 0:00:43.9]} 25... Qxd6 {[%clk 0:00:19.7]} 26. Qc2 {[%clk
0:00:43.7]} 26... g5 {[%clk 0:00:13]} 27. Qa4 {[%clk 0:00:37.2]} 27... Qd7
{[%clk 0:00:12]} 28. Qa6 {[%clk 0:00:27.6]} 28... f6 {[%clk 0:00:10.2]} 29. a4
{[%clk 0:00:25.6]} 29... Bf8 {[%clk 0:00:09.8]} 30. c5 {[%clk 0:00:20.7]} 30...
bxc5 {[%clk 0:00:08.9]} 31. b5 {[%clk 0:00:21.3]} 31... cxb5 {[%clk 0:00:06.4]}
32. Qxf6 {[%clk 0:00:21.8]} 32... Qe7 {[%clk 0:00:04.4]} 33. Qc6 {[%clk
0:00:13.7]} 33... bxa4 {[%clk 0:00:04.2]} 34. Qxa4 {[%clk 0:00:14.6]} 34... Kf7
{[%clk 0:00:02.6]} 35. Qc4+ {[%clk 0:00:14.6]} 35... Kf6 {[%clk 0:00:02.5]} 36.
Qd5 {[%clk 0:00:14.6]} 36... Bg7 {[%clk 0:00:03.2]} 37. h4 {[%clk 0:00:14.6]}
37... h6 {[%clk 0:00:02.8]} 38. h5 {[%clk 0:00:15]} 38... Qe6 {[%clk 0:00:02.7]}
39. Qd8+ {[%clk 0:00:14.5]} 39... Qe7 {[%clk 0:00:03.3]} 40. Bxe5+ {[%clk
0:00:14.3]} 40... Kf7 {[%clk 0:00:02.1]} 41. Qxe7+ {[%clk 0:00:14.7]} 41... Kxe7
{[%clk 0:00:02.5]} 42. Bxg7 {[%clk 0:00:15.6]} 42... a5 {[%clk 0:00:02.9]} 43.
f4 {[%clk 0:00:14.1]} 43... gxf4 {[%clk 0:00:02.9]} 44. Kf3 {[%clk 0:00:14.8]}
44... a4 {[%clk 0:00:03.8]} 45. Kxf4 {[%clk 0:00:15.2]} 45... Kf7 {[%clk
0:00:04.4]} 46. Bc3 {[%clk 0:00:15]} 46... c4 {[%clk 0:00:05.3]} 47. e5 {[%clk
0:00:15.3]} 47... Ke6 {[%clk 0:00:06]} 48. Ke4 {[%clk 0:00:16.1]} 48... a3
{[%clk 0:00:06.6]} 49. f4 {[%clk 0:00:16.6]} 49... a2 {[%clk 0:00:07.5]} 50. f5+
{[%clk 0:00:17.1]} 50... Kf7 {[%clk 0:00:08.4]} 51. Kd5 {[%clk 0:00:17.6]} 51...
Ke7 {[%clk 0:00:09.3]} 52. Kxc4 {[%clk 0:00:18.1]} 52... Kd7 {[%clk 0:00:10.2]}
53. Ba1 {[%clk 0:00:18.6]} 53... Kc6 {[%clk 0:00:11.1]} 54. f6 {[%clk
0:00:18.9]} 54... Kd7 {[%clk 0:00:12]} 55. Kd5 {[%clk 0:00:19.5]} 55... Kc7
{[%clk 0:00:12.3]} 56. e6 {[%clk 0:00:20]} 56... Kd8 {[%clk 0:00:12.8]} 57. Kd6
{[%clk 0:00:20]} 57... Ke8 {[%clk 0:00:13.7]} 1-0

[Event "Late-Titled-Tuesday-Blitz-September-19-2023"]
[Site "Chess.com"]
[Date "2023.09.19"]
[Round "8"]
[White "djano"]
[Black "mishanick"]
[Result "0-1"]
[WhiteElo "2625"]
[BlackElo "3086"]
[TimeControl "180+1"]
[EndTime "15:28:26 PDT"]
[Termination "mishanick won by checkmate"]

1. e4 {[%clk 0:03:00.9]} 1... c5 {[%clk 0:02:59.1]} 2. Nc3 {[%clk 0:03:00.9]}
2... e6 {[%clk 0:02:58.5]} 3. f4 {[%clk 0:03:00.1]} 3... d5 {[%clk 0:02:57.9]}
4. Nf3 {[%clk 0:02:59.4]} 4... d4 {[%clk 0:02:55.8]} 5. Bb5+ {[%clk 0:02:50.8]}
5... Nd7 {[%clk 0:02:53.9]} 6. Ne2 {[%clk 0:02:39.8]} 6... a6 {[%clk 0:02:53.8]}
7. Bxd7+ {[%clk 0:02:39.1]} 7... Qxd7 {[%clk 0:02:54.7]} 8. d3 {[%clk
0:02:37.9]} 8... b5 {[%clk 0:02:55.1]} 9. O-O {[%clk 0:02:37.2]} 9... Bb7 {[%clk
0:02:55.7]} 10. Qe1 {[%clk 0:02:29.3]} 10... Ne7 {[%clk 0:02:56]} 11. Qg3 {[%clk
0:02:16.3]} 11... f5 {[%clk 0:02:55.4]} 12. Ne5 {[%clk 0:02:05.5]} 12... Qc7
{[%clk 0:02:52.2]} 13. Qh3 {[%clk 0:01:52.6]} 13... g6 {[%clk 0:02:50]} 14. Ng3
{[%clk 0:01:45.3]} 14... Bg7 {[%clk 0:02:50]} 15. exf5 {[%clk 0:01:33.2]} 15...
exf5 {[%clk 0:02:50.9]} 16. Bd2 {[%clk 0:01:29.4]} 16... O-O {[%clk 0:02:49.7]}
17. Rae1 {[%clk 0:01:28.3]} 17... Nd5 {[%clk 0:02:50.3]} 18. c4 {[%clk 0:01:07]}
18... dxc3 {[%clk 0:02:49.4]} 19. bxc3 {[%clk 0:01:07]} 19... Rae8 {[%clk
0:02:47.2]} 20. d4 {[%clk 0:00:54.1]} 20... cxd4 {[%clk 0:02:41.1]} 21. cxd4
{[%clk 0:00:54.1]} 21... Qc2 {[%clk 0:02:40.3]} 22. Rf2 {[%clk 0:00:50.6]} 22...
Qa4 {[%clk 0:02:34.1]} 23. Ne2 {[%clk 0:00:46.4]} 23... Qxa2 {[%clk 0:02:33.1]}
24. Nc1 {[%clk 0:00:38.9]} 24... Qa4 {[%clk 0:02:29.8]} 25. Nb3 {[%clk
0:00:28.9]} 25... Qa3 {[%clk 0:02:15.3]} 26. Ra1 {[%clk 0:00:23.2]} 26... Qe7
{[%clk 0:02:14.7]} 27. Nc5 {[%clk 0:00:22.8]} 27... Bc8 {[%clk 0:02:12.2]} 28.
Qb3 {[%clk 0:00:21.9]} 28... Qd6 {[%clk 0:02:07.7]} 29. Nxa6 {[%clk 0:00:16]}
29... Kh8 {[%clk 0:01:32.3]} 30. Nc5 {[%clk 0:00:15.3]} 30... b4 {[%clk
0:01:21.7]} 31. Bxb4 {[%clk 0:00:13.7]} 31... Nxb4 {[%clk 0:01:20.3]} 32. Qxb4
{[%clk 0:00:14.2]} 32... Qd5 {[%clk 0:01:20.3]} 33. Rd1 {[%clk 0:00:13]} 33...
g5 {[%clk 0:01:06.5]} 34. Qb3 {[%clk 0:00:11.7]} 34... Qxb3 {[%clk 0:01:00.2]}
35. Nxb3 {[%clk 0:00:11.7]} 35... Rd8 {[%clk 0:01:00.8]} 36. g3 {[%clk
0:00:10.3]} 36... gxf4 {[%clk 0:01:01]} 37. gxf4 {[%clk 0:00:11]} 37... Bb7
{[%clk 0:00:56.1]} 38. Nc5 {[%clk 0:00:10.3]} 38... Bd5 {[%clk 0:00:56.3]} 39.
Rb2 {[%clk 0:00:08.7]} 39... Bh6 {[%clk 0:00:55.4]} 40. Ncd3 {[%clk 0:00:07.4]}
40... Rg8+ {[%clk 0:00:54.6]} 41. Kf1 {[%clk 0:00:08]} 41... Rg7 {[%clk
0:00:54.9]} 42. Rb5 {[%clk 0:00:08.1]} 42... Be4 {[%clk 0:00:48.4]} 43. Rdb1
{[%clk 0:00:06.5]} 43... Bxf4 {[%clk 0:00:15.7]} 44. Nxf4 {[%clk 0:00:04.9]}
44... Bxb1 {[%clk 0:00:16.2]} 45. Ne6 {[%clk 0:00:04.5]} 45... Rc8 {[%clk
0:00:03.2]} 46. Nxg7 {[%clk 0:00:04.5]} 46... Rc1+ {[%clk 0:00:03.5]} 47. Kf2
{[%clk 0:00:04.7]} 47... Kxg7 {[%clk 0:00:04.4]} 48. Rb7+ {[%clk 0:00:04.7]}
48... Kh6 {[%clk 0:00:05]} 49. Rb6+ {[%clk 0:00:05]} 49... Kg5 {[%clk
0:00:04.6]} 50. Rb7 {[%clk 0:00:03.9]} 50... h5 {[%clk 0:00:02.8]} 51. Rb3
{[%clk 0:00:03.8]} 51... Be4 {[%clk 0:00:02.7]} 52. Rg3+ {[%clk 0:00:03.6]}
52... Kf6 {[%clk 0:00:01.9]} 53. Nd7+ {[%clk 0:00:03.6]} 53... Ke7 {[%clk
0:00:01.6]} 54. Ne5 {[%clk 0:00:04.5]} 54... Rc2+ {[%clk 0:00:01.8]} 55. Kg1
{[%clk 0:00:05.1]} 55... Ke6 {[%clk 0:00:02.4]} 56. h4 {[%clk 0:00:05]} 56...
Kd5 {[%clk 0:00:02.8]} 57. Rg5 {[%clk 0:00:04.6]} 57... Kxd4 {[%clk 0:00:03.1]}
58. Nf7 {[%clk 0:00:04]} 58... Ke3 {[%clk 0:00:03.4]} 59. Rg3+ {[%clk
0:00:03.6]} 59... Bf3 {[%clk 0:00:03.5]} 60. Ng5 {[%clk 0:00:03.5]} 60... Rc1+
{[%clk 0:00:04]} 61. Kh2 {[%clk 0:00:01.6]} 61... Rh1# {[%clk 0:00:04.9]} 0-1

[Event "Late-Titled-Tuesday-Blitz-September-19-2023"]
[Site "Chess.com"]
[Date "2023.09.19"]
[Round "8"]
[White "Hoshka"]
[Black "KejJaj"]
[Result "0-1"]
[WhiteElo "2048"]
[BlackElo "2205"]
[TimeControl "180+1"]
[EndTime "15:28:33 PDT"]
[Termination "KejJaj won on time"]

1. d4 {[%clk 0:02:59.9]} 1... f5 {[%clk 0:02:59.4]} 2. g3 {[%clk 0:02:58.5]}
2... Nf6 {[%clk 0:02:59.7]} 3. Bg2 {[%clk 0:02:58.8]} 3... e6 {[%clk 0:03:00.2]}
4. Nf3 {[%clk 0:02:58.4]} 4... d5 {[%clk 0:03:00.5]} 5. O-O {[%clk 0:02:58]}
5... Bd6 {[%clk 0:03:01]} 6. c4 {[%clk 0:02:57.8]} 6... c6 {[%clk 0:03:01.6]} 7.
Nc3 {[%clk 0:02:53.9]} 7... O-O {[%clk 0:02:58.1]} 8. Rb1 {[%clk 0:02:51.7]}
8... Qe7 {[%clk 0:02:49.5]} 9. Qc2 {[%clk 0:02:51]} 9... Nbd7 {[%clk 0:02:45.7]}
10. Bg5 {[%clk 0:02:36.5]} 10... h6 {[%clk 0:02:40]} 11. Bxf6 {[%clk 0:02:36.3]}
11... Nxf6 {[%clk 0:02:34.7]} 12. Ne5 {[%clk 0:02:31]} 12... Bd7 {[%clk
0:02:28]} 13. Nxd7 {[%clk 0:02:20.4]} 13... Qxd7 {[%clk 0:02:23.3]} 14. c5
{[%clk 0:02:19.1]} 14... Bc7 {[%clk 0:02:22.7]} 15. f4 {[%clk 0:02:10.6]} 15...
a6 {[%clk 0:02:09.8]} 16. b4 {[%clk 0:02:01.9]} 16... Ne4 {[%clk 0:01:56.4]} 17.
a4 {[%clk 0:01:53.1]} 17... g5 {[%clk 0:01:22.7]} 18. e3 {[%clk 0:01:52.2]}
18... g4 {[%clk 0:01:11]} 19. b5 {[%clk 0:01:33.7]} 19... Nxc3 {[%clk
0:01:09.2]} 20. Qxc3 {[%clk 0:01:33.4]} 20... axb5 {[%clk 0:01:09.5]} 21. axb5
{[%clk 0:01:33.3]} 21... cxb5 {[%clk 0:01:09.9]} 22. Qd3 {[%clk 0:01:33.3]}
22... Ra5 {[%clk 0:01:07.7]} 23. Rb3 {[%clk 0:01:30]} 23... Rfa8 {[%clk
0:01:05.5]} 24. Rfb1 {[%clk 0:01:29.4]} 24... b6 {[%clk 0:00:48.5]} 25. cxb6
{[%clk 0:01:24.8]} 25... Bxb6 {[%clk 0:00:47.4]} 26. Bf1 {[%clk 0:01:15.6]}
26... Bd8 {[%clk 0:00:32.2]} 27. Rxb5 {[%clk 0:01:01.5]} 27... Rxb5 {[%clk
0:00:31]} 28. Qxb5 {[%clk 0:01:01.1]} 28... Qxb5 {[%clk 0:00:30.1]} 29. Bxb5
{[%clk 0:01:00.1]} 29... Ra3 {[%clk 0:00:28.4]} 30. Kf2 {[%clk 0:00:46.9]} 30...
Ba5 {[%clk 0:00:28.6]} 31. Bd7 {[%clk 0:00:42.7]} 31... Ra2+ {[%clk 0:00:28.1]}
32. Kg1 {[%clk 0:00:39.3]} 32... Kf7 {[%clk 0:00:28.2]} 33. Rb7 {[%clk
0:00:35.3]} 33... Kf6 {[%clk 0:00:28.7]} 34. Be8 {[%clk 0:00:34.5]} 34... Ra1+
{[%clk 0:00:27.9]} 35. Kg2 {[%clk 0:00:34]} 35... Ra2+ {[%clk 0:00:28.5]} 36.
Kf1 {[%clk 0:00:32.9]} 36... Ra1+ {[%clk 0:00:29.1]} 37. Ke2 {[%clk 0:00:32.6]}
37... Ra2+ {[%clk 0:00:29.8]} 38. Kd1 {[%clk 0:00:32.6]} 38... Rxh2 {[%clk
0:00:29.6]} 39. Rf7+ {[%clk 0:00:31.8]} 39... Kg6 {[%clk 0:00:28.6]} 40. Ra7+
{[%clk 0:00:30.4]} 40... Kf6 {[%clk 0:00:27.9]} 41. Rxa5 {[%clk 0:00:30.3]}
41... Rg2 {[%clk 0:00:26.5]} 42. Ra7 {[%clk 0:00:28.5]} 42... Rxg3 {[%clk
0:00:26.9]} 43. Rf7+ {[%clk 0:00:27.4]} 43... Kg6 {[%clk 0:00:27.6]} 44. Ke2
{[%clk 0:00:26]} 44... h5 {[%clk 0:00:27.5]} 45. Re7+ {[%clk 0:00:22.1]} 45...
Kf6 {[%clk 0:00:26.9]} 46. Rh7 {[%clk 0:00:20.8]} 46... Rh3 {[%clk 0:00:26.1]}
47. Rxh5 {[%clk 0:00:19.9]} 47... Rxh5 {[%clk 0:00:25.3]} 48. Bxh5 {[%clk
0:00:17.6]} 48... Kg7 {[%clk 0:00:24.5]} 49. Kf2 {[%clk 0:00:17]} 49... Kf6
{[%clk 0:00:24.5]} 50. Kg3 {[%clk 0:00:16.9]} 50... Kg7 {[%clk 0:00:24.8]} 51.
Kh4 {[%clk 0:00:16.7]} 51... Kf6 {[%clk 0:00:25.2]} 52. Be8 {[%clk 0:00:15]}
52... Ke7 {[%clk 0:00:24.1]} 53. Bb5 {[%clk 0:00:13.7]} 53... Kf6 {[%clk
0:00:24.3]} 54. Kh5 {[%clk 0:00:12.2]} 54... Kg7 {[%clk 0:00:23.1]} 55. Kg5
{[%clk 0:00:11.5]} 55... Kf7 {[%clk 0:00:23.1]} 56. Kh6 {[%clk 0:00:11.4]} 56...
Kf6 {[%clk 0:00:23]} 57. Kh7 {[%clk 0:00:11]} 57... Kf7 {[%clk 0:00:22.9]} 58.
Bf1 {[%clk 0:00:09.7]} 58... Kf6 {[%clk 0:00:20.7]} 59. Bg2 {[%clk 0:00:08.7]}
59... Kf7 {[%clk 0:00:20.4]} 60. Kh6 {[%clk 0:00:09]} 60... Kf6 {[%clk
0:00:20.8]} 61. Kh7 {[%clk 0:00:08]} 61... Kf7 {[%clk 0:00:21.5]} 62. Bf1 {[%clk
0:00:06.3]} 62... Kf6 {[%clk 0:00:20.5]} 63. Be2 {[%clk 0:00:06.2]} 63... Kf7
{[%clk 0:00:19.7]} 64. Bb5 {[%clk 0:00:05.1]} 64... Kf6 {[%clk 0:00:19.8]} 65.
Kh6 {[%clk 0:00:01.9]} 65... Kf7 {[%clk 0:00:19.7]} 66. Kh5 {[%clk 0:00:02.2]}
66... Kf6 {[%clk 0:00:19.6]} 67. Kh6 {[%clk 0:00:02.6]} 67... Kf7 {[%clk
0:00:19.9]} 68. Kg5 {[%clk 0:00:01.8]} 68... Kg7 {[%clk 0:00:19.1]} 0-1

[Event "Late-Titled-Tuesday-Blitz-September-19-2023"]
[Site "Chess.com"]
[Date "2023.09.19"]
[Round "8"]
[White "DvaHrasta"]
[Black "IgorBjelobrk"]
[Result "1-0"]
[WhiteElo "2518"]
[BlackElo "2671"]
[TimeControl "180+1"]
[EndTime "15:28:35 PDT"]
[Termination "DvaHrasta won on time"]

1. c4 {[%clk 0:03:00.9]} 1... b6 {[%clk 0:02:58.4]} 2. g3 {[%clk 0:03:00.3]}
2... Bb7 {[%clk 0:02:58.1]} 3. Nf3 {[%clk 0:03:00.5]} 3... Bxf3 {[%clk
0:02:57.9]} 4. exf3 {[%clk 0:03:01.4]} 4... c5 {[%clk 0:02:58.4]} 5. d4 {[%clk
0:03:01.7]} 5... cxd4 {[%clk 0:02:58.6]} 6. Qxd4 {[%clk 0:03:02.6]} 6... Nc6
{[%clk 0:02:59.1]} 7. Qd2 {[%clk 0:03:02.9]} 7... g6 {[%clk 0:02:54.5]} 8. Bg2
{[%clk 0:03:03.1]} 8... Bg7 {[%clk 0:02:54.3]} 9. O-O {[%clk 0:03:03.3]} 9...
Rc8 {[%clk 0:02:53.4]} 10. Nc3 {[%clk 0:03:01.9]} 10... h5 {[%clk 0:02:40.8]}
11. b3 {[%clk 0:03:00.7]} 11... Nh6 {[%clk 0:02:40.2]} 12. Bb2 {[%clk
0:02:59.7]} 12... Nf5 {[%clk 0:02:36.8]} 13. Rad1 {[%clk 0:02:58.9]} 13... d6
{[%clk 0:02:31.6]} 14. Bh3 {[%clk 0:02:58.2]} 14... Nfd4 {[%clk 0:02:24.3]} 15.
Kg2 {[%clk 0:02:51.1]} 15... Nf5 {[%clk 0:00:50.6]} 16. Bxf5 {[%clk 0:02:46.3]}
16... gxf5 {[%clk 0:00:51.5]} 17. Qg5 {[%clk 0:02:46]} 17... Bf6 {[%clk
0:00:47.8]} 18. Qxf5 {[%clk 0:02:46.1]} 18... Qd7 {[%clk 0:00:40.9]} 19. Qe4
{[%clk 0:02:32.2]} 19... h4 {[%clk 0:00:39.2]} 20. g4 {[%clk 0:02:25.3]} 20...
h3+ {[%clk 0:00:39.1]} 21. Kh1 {[%clk 0:02:24.9]} 21... Qe6 {[%clk 0:00:33.6]}
22. Qb1 {[%clk 0:02:07]} 22... Ne5 {[%clk 0:00:19.6]} 23. Rfe1 {[%clk
0:02:02.3]} 23... Rg8 {[%clk 0:00:19.3]} 24. Nd5 {[%clk 0:01:50.7]} 24... Bh4
{[%clk 0:00:16.3]} 25. Re2 {[%clk 0:01:35.1]} 25... Qg6 {[%clk 0:00:16]} 26.
Bxe5 {[%clk 0:01:29.7]} 26... Qxb1 {[%clk 0:00:13.7]} 27. Rxb1 {[%clk
0:01:26.6]} 27... dxe5 {[%clk 0:00:14]} 28. Rxe5 {[%clk 0:01:25.4]} 28... e6
{[%clk 0:00:14.3]} 29. Nf4 {[%clk 0:01:11.9]} 29... Bf6 {[%clk 0:00:07.9]} 30.
Rh5 {[%clk 0:01:06.6]} 30... Rd8 {[%clk 0:00:05.9]} 31. Nxh3 {[%clk 0:00:59.5]}
31... Rd2 {[%clk 0:00:06]} 32. a4 {[%clk 0:00:58.3]} 32... Ke7 {[%clk
0:00:06.3]} 33. a5 {[%clk 0:00:54.5]} 33... bxa5 {[%clk 0:00:05.9]} 34. Rxa5
{[%clk 0:00:52.3]} 34... Bd4 {[%clk 0:00:06.5]} 35. Kg2 {[%clk 0:00:49.6]} 35...
Rd8 {[%clk 0:00:06.3]} 36. Rf1 {[%clk 0:00:45.3]} 36... Rc2 {[%clk 0:00:06.6]}
37. Nf4 {[%clk 0:00:42.5]} 37... Bb6 {[%clk 0:00:06.2]} 38. Rb5 {[%clk
0:00:37.4]} 38... Rdd2 {[%clk 0:00:06.8]} 39. c5 {[%clk 0:00:37.1]} 39... Bxc5
{[%clk 0:00:06.7]} 40. Nh3 {[%clk 0:00:34.5]} 40... Bb6 {[%clk 0:00:07]} 41. g5
{[%clk 0:00:32.7]} 41... Rb2 {[%clk 0:00:07.3]} 42. g6 {[%clk 0:00:24.8]} 42...
fxg6 {[%clk 0:00:07.2]} 43. Re5 {[%clk 0:00:24]} 43... Kf6 {[%clk 0:00:07.1]}
44. Re4 {[%clk 0:00:23.7]} 44... Rxb3 {[%clk 0:00:06.7]} 45. Nf4 {[%clk
0:00:23.5]} 45... e5 {[%clk 0:00:06.8]} 46. Ne2 {[%clk 0:00:22.3]} 46... Rbb2
{[%clk 0:00:06.9]} 47. Ng3 {[%clk 0:00:22]} 47... Rxf2+ {[%clk 0:00:06.6]} 48.
Rxf2 {[%clk 0:00:22.5]} 48... Rxf2+ {[%clk 0:00:07.1]} 49. Kh3 {[%clk
0:00:22.8]} 49... Rxf3 {[%clk 0:00:07.7]} 50. Ra4 {[%clk 0:00:21.7]} 50... Rf4
{[%clk 0:00:06.3]} 51. Ra2 {[%clk 0:00:20.5]} 51... g5 {[%clk 0:00:05.7]} 52.
Re2 {[%clk 0:00:19.3]} 52... g4+ {[%clk 0:00:05.8]} 53. Kg2 {[%clk 0:00:19]}
53... Rf3 {[%clk 0:00:04.7]} 54. Ne4+ {[%clk 0:00:18.9]} 54... Kf5 {[%clk
0:00:05.1]} 55. Nd6+ {[%clk 0:00:19]} 55... Ke6 {[%clk 0:00:04.7]} 56. Ne4
{[%clk 0:00:18.6]} 56... Bd4 {[%clk 0:00:05]} 57. Ng5+ {[%clk 0:00:18.6]} 57...
Kd5 {[%clk 0:00:04.8]} 58. Nxf3 {[%clk 0:00:19.5]} 58... gxf3+ {[%clk
0:00:05.2]} 59. Kxf3 {[%clk 0:00:20.4]} 59... a5 {[%clk 0:00:05.6]} 60. h4
{[%clk 0:00:20.5]} 60... a4 {[%clk 0:00:05.3]} 61. Ra2 {[%clk 0:00:20.5]} 61...
e4+ {[%clk 0:00:04]} 62. Ke2 {[%clk 0:00:20]} 62... Bf6 {[%clk 0:00:02.6]} 63.
h5 {[%clk 0:00:20.1]} 63... Ke5 {[%clk 0:00:02.9]} 64. Rxa4 {[%clk 0:00:20.3]}
64... Kf5 {[%clk 0:00:03.6]} 65. Ra5+ {[%clk 0:00:20]} 65... Kg4 {[%clk
0:00:03.5]} 66. h6 {[%clk 0:00:20.3]} 66... Kf4 {[%clk 0:00:02]} 67. h7 {[%clk
0:00:20.4]} 67... Bd4 {[%clk 0:00:02]} 68. Ra8 {[%clk 0:00:20.1]} 1-0

[Event "Late-Titled-Tuesday-Blitz-September-19-2023"]
[Site "Chess.com"]
[Date "2023.09.19"]
[Round "8"]
[White "Aariow"]
[Black "rychessmaster1"]
[Result "1/2-1/2"]
[WhiteElo "2564"]
[BlackElo "2720"]
[TimeControl "180+1"]
[EndTime "15:28:39 PDT"]
[Termination "Game drawn by stalemate"]

1. d4 {[%clk 0:03:00.9]} 1... Nf6 {[%clk 0:03:00.1]} 2. c4 {[%clk 0:03:01.2]}
2... e6 {[%clk 0:03:00.3]} 3. Nc3 {[%clk 0:03:01.9]} 3... Bb4 {[%clk 0:03:00.6]}
4. Qc2 {[%clk 0:03:02.5]} 4... d5 {[%clk 0:03:00.6]} 5. cxd5 {[%clk 0:03:02.6]}
5... exd5 {[%clk 0:03:01.1]} 6. Bg5 {[%clk 0:03:02.4]} 6... h6 {[%clk
0:03:01.4]} 7. Bh4 {[%clk 0:03:03]} 7... Nc6 {[%clk 0:03:01.8]} 8. e3 {[%clk
0:03:03.1]} 8... g5 {[%clk 0:03:02]} 9. Bg3 {[%clk 0:03:03.8]} 9... h5 {[%clk
0:03:02.6]} 10. Bb5 {[%clk 0:03:04.6]} 10... h4 {[%clk 0:03:02.7]} 11. Be5
{[%clk 0:03:04.1]} 11... O-O {[%clk 0:03:03]} 12. Ne2 {[%clk 0:02:51.6]} 12...
Ne4 {[%clk 0:02:59.5]} 13. f3 {[%clk 0:02:42.9]} 13... Nxc3 {[%clk 0:02:21]} 14.
bxc3 {[%clk 0:02:40.5]} 14... Nxe5 {[%clk 0:02:21.4]} 15. cxb4 {[%clk
0:02:35.3]} 15... Ng6 {[%clk 0:02:20]} 16. Bd3 {[%clk 0:02:30.4]} 16... Qd6
{[%clk 0:02:17.4]} 17. O-O {[%clk 0:02:29.4]} 17... Re8 {[%clk 0:02:05.7]} 18.
e4 {[%clk 0:02:19.1]} 18... Nf4 {[%clk 0:02:05.5]} 19. Nxf4 {[%clk 0:02:14.4]}
19... Qxf4 {[%clk 0:02:05.4]} 20. Kh1 {[%clk 0:02:02.6]} 20... Bd7 {[%clk
0:01:54.4]} 21. exd5 {[%clk 0:01:44.3]} 21... Qxd4 {[%clk 0:01:48.2]} 22. Rad1
{[%clk 0:01:43.7]} 22... Qf4 {[%clk 0:01:44.9]} 23. Bc4 {[%clk 0:01:26]} 23...
Kg7 {[%clk 0:01:32.2]} 24. Qc3+ {[%clk 0:01:15.7]} 24... Qf6 {[%clk 0:01:32.1]}
25. Qc1 {[%clk 0:01:09.8]} 25... Re7 {[%clk 0:01:17.6]} 26. Bb3 {[%clk
0:00:45.4]} 26... Bb5 {[%clk 0:00:56.5]} 27. Rf2 {[%clk 0:00:42]} 27... Rae8
{[%clk 0:00:55.5]} 28. a4 {[%clk 0:00:41.2]} 28... Bd7 {[%clk 0:00:52.9]} 29.
Rff1 {[%clk 0:00:37.8]} 29... h3 {[%clk 0:00:46.2]} 30. Rf2 {[%clk 0:00:17.9]}
30... Qe5 {[%clk 0:00:27.8]} 31. Rg1 {[%clk 0:00:15.6]} 31... f6 {[%clk
0:00:26]} 32. f4 {[%clk 0:00:12]} 32... Qe3 {[%clk 0:00:25.1]} 33. Rf3 {[%clk
0:00:09.7]} 33... Qxc1 {[%clk 0:00:25.1]} 34. Rxc1 {[%clk 0:00:09.6]} 34...
hxg2+ {[%clk 0:00:25.7]} 35. Kxg2 {[%clk 0:00:09.5]} 35... Bf5 {[%clk
0:00:26.5]} 36. fxg5 {[%clk 0:00:08.4]} 36... Re2+ {[%clk 0:00:20.1]} 37. Kg3
{[%clk 0:00:08.8]} 37... R8e3 {[%clk 0:00:15.5]} 38. Rxc7+ {[%clk 0:00:08.7]}
38... Kg6 {[%clk 0:00:16.2]} 39. gxf6 {[%clk 0:00:04.9]} 39... Kxf6 {[%clk
0:00:11]} 40. Rxb7 {[%clk 0:00:04.6]} 40... Kg5 {[%clk 0:00:09.5]} 41. h4+
{[%clk 0:00:03.5]} 41... Kg6 {[%clk 0:00:09.1]} 42. Rxa7 {[%clk 0:00:03.9]}
42... Rxf3+ {[%clk 0:00:08]} 43. Kxf3 {[%clk 0:00:04.8]} 43... Rb2 {[%clk
0:00:08.4]} 44. Bc4 {[%clk 0:00:05.3]} 44... Rxb4 {[%clk 0:00:08.7]} 45. Bb5
{[%clk 0:00:05.9]} 45... Rd4 {[%clk 0:00:08.6]} 46. d6 {[%clk 0:00:06]} 46...
Rxd6 {[%clk 0:00:08.4]} 47. Kf4 {[%clk 0:00:06]} 47... Rd4+ {[%clk 0:00:08.6]}
48. Ke5 {[%clk 0:00:06.5]} 48... Re4+ {[%clk 0:00:09.3]} 49. Kd5 {[%clk
0:00:05.4]} 49... Rxh4 {[%clk 0:00:10]} 50. Ra6+ {[%clk 0:00:05.4]} 50... Kg5
{[%clk 0:00:10.3]} 51. Rb6 {[%clk 0:00:04.8]} 51... Rh1 {[%clk 0:00:09.6]} 52.
Rb8 {[%clk 0:00:04.5]} 52... Ra1 {[%clk 0:00:09.7]} 53. Kc5 {[%clk 0:00:05]}
53... Kf4 {[%clk 0:00:09.9]} 54. Kb6 {[%clk 0:00:05.3]} 54... Be4 {[%clk
0:00:09.3]} 55. Rf8+ {[%clk 0:00:05.3]} 55... Ke3 {[%clk 0:00:09.7]} 56. Re8
{[%clk 0:00:05.9]} 56... Kd4 {[%clk 0:00:09.2]} 57. a5 {[%clk 0:00:06.2]} 57...
Rb1 {[%clk 0:00:09.5]} 58. Rd8+ {[%clk 0:00:06]} 58... Ke5 {[%clk 0:00:09.6]}
59. a6 {[%clk 0:00:04.7]} 59... Rg1 {[%clk 0:00:06]} 60. Re8+ {[%clk 0:00:03]}
60... Kd4 {[%clk 0:00:06.3]} 61. a7 {[%clk 0:00:03.3]} 61... Rg6+ {[%clk
0:00:06.1]} 62. Ka5 {[%clk 0:00:03.7]} 62... Bg2 {[%clk 0:00:04.5]} 63. Rd8+
{[%clk 0:00:02.3]} 63... Kc3 {[%clk 0:00:04.7]} 64. Rc8+ {[%clk 0:00:02.6]}
64... Kb2 {[%clk 0:00:05]} 65. Bd3 {[%clk 0:00:02.6]} 65... Rd6 {[%clk
0:00:04.9]} 66. Rc2+ {[%clk 0:00:02.5]} 66... Kb3 {[%clk 0:00:05.1]} 67. Rxg2
{[%clk 0:00:03.4]} 67... Rd5+ {[%clk 0:00:05.4]} 68. Bb5 {[%clk 0:00:03.5]}
68... Rd1 {[%clk 0:00:04.5]} 69. Ba4+ {[%clk 0:00:03.2]} 69... Ka3 {[%clk
0:00:04.6]} 70. Bxd1 {[%clk 0:00:04.1]} 1/2-1/2